Workbook

Sheet SUMMARY
B2: Результат экспресс-анализа операционной эффективности предприятия
B4: 1 | C4: Production Оперативное управление производством | D4: ='1.PM'!E1 -> 0.475
B5: 2 | C5: Quality Система управления качеством | D5: ='2.Q'!E1 -> 0.7066666667
B6: 3 | C6: Logistics Управление материальными потоками | D6: ='3.LM'!E1 -> 0.4
B7: 4 | C7: Engineering Управление технологией | D7: ='4.EN'!E1 -> 0.6125
B8: 5 | C8: Maintenance Система обслуживания оборудования | D8: ='5. MT'!E1 -> 0.3520833333
B9: 6 | C9: HR Управление персоналом | D9: ='6.HR'!E1 -> 0.5200802139
B10: 7 | C10: Executive Management Исполнительное управление | D10: ='7. EX'!E1 -> 0.7175
B11: 8 | C11: Safety Система ОТ и ПБ | D11: ='8. SAFETY '!E1 -> 0.3

Sheet 1.PM
D1: Оперативное управление производством: | E1: =SUM(E3:E23) -> 0.475
D2: Результат | F2: wheight | G2: criteria
B3: 1. | C3: Система планирования производства | D3: =SUMIF(D4:D12,"1") -> 3 | E3: =F3/G3*D3 -> 0.1166666667 | F3: 0.35 | G3: =COUNTIF(B4:B12,"<>") -> 9
B4: 1.1. | C4: Наличие четкой, прозрачной и формализованной системы планирования (регламент/процедура). | D4: 0
B5: 1.2. | C5: Определены ответственные за формирование и корректировку производственного плана лица (службы). | D5: 1
B6: 1.3. | C6: Ответственные за планирование лица (службы) выдают "конечное" сменное задание, не требующее дополнительной "обработки" (анализа или учета дополнительных факторов). | D6: 0
B7: 1.4. | C7: Существует формализованная процедура внесения изменений в производственный план. | D7: 0
B8: 1.5. | C8: Существует регламент со сроками и периодичностью выдачи сменного производственного плана. | D8: 1
B9: 1.6. | C9: Определены все входящие и исходящие информационные потоки (документы). | D9: 0
B10: 1.7. | C10: Система планирования учитывает запасы (готовая продукция, НЗП, брак, заготовки), а также результат работы предыдущей смены. | D10: 0
B11: 1.8. | C11: Наличие сменного производственного плана на каждом рабочем месте. | D11: 1
B12: 1.9. | C12: Наличие недельного и месячного производственного плана. | D12: 0
B13: 2. | C13: Система контроля хода производства | D13: =SUMIF(D14:D17,"1") -> 2 | E13: =F13/G13*D13 -> 0.175 | F13: 0.35 | G13: =COUNTIF(B14:B17,"<>") -> 4
B14: 2.1. | C14: Существует регламент проведения собрания с операторами в начале смены (обсуждение сменного производственного плана, проблем, приоритетов, доведения результатов и т.д.) | D14: 1
B15: 2.2. | C15: В сменном задании на рабочем месте отображается ход выполнения (с учетом простоев, с комментариями, и т.д.) | D15: 0
B16: 2.3. | C16: Существует регламент ежедневного доведения результатов работы бригады/участка/цеха: выполнения плана, количество брака, простоев оборудования и т.д. (бригадный стенд). | D16: 1
B17: 2.4. | C17: Проводится анализ, выявление трендов: выполнения плана, загруженности, доступности оборудования, причин возникновения брака и т.д. | D17: 0
B18: 3. | C18: Система эскалации и решения проблем | D18: =SUMIF(D19:D22,"1") -> 3 | E18: =F18/G18*D18 -> 0.15 | F18: 0.2 | G18: =COUNTIF(B19:B22,"<>") -> 4
B19: 3.1. | C19: Существует формализованная процедура/регламент эскалации проблем, в котором оговорены сроки уведомления, ответственные лица, время реакции ответственных служб и т.д. | D19: 1
B20: 3.2. | C20: Наличие регламента (или перечня ответственных лиц в случае возникновения проблем) на каждом рабочем месте. | D20: 0
B21: 3.3. | C21: Проводится анализ выявленных проблем и узких мест, есть мероприятия с указанием сроков и ответственных лиц. | D21: 1
B22: 3.4. | C22: Проводится мониторинг выполнения мероприятий. | D22: 1
B23: 4. | C23: Автоматизация | D23: =SUM(D24:D26) -> 1 | E23: =F23/G23*D23 -> 0.03333333333 | F23: 0.1 | G23: =COUNTIF(B24:B26,"<>") -> 3
B24: 4.1. | C24: Сменное задание бригада/участка/цеха генерирует система или поступает по сети от плановой службы. | D24: 1
B25: 4.2. | C25: Задание на рабочие места распределяются автоматически исходя из загруженности мощностей и возможностей оборудования. | D25: 0
B26: 4.3. | C26: Автоматизация рабочего места. План передается непосредственно на рабочее место, существует обратная связь - выполнение операций, ход работ - фиксируются и передаются по сети. | D26: 0

Sheet 2.Q
D1: Система управления качеством: | E1: =SUM(E3:E20) -> 0.7066666667
D2: Результат | G2: wheight | H2: criteria
B3: 1. | C3: Входной контроль | D3: =SUMIF(D4:D6,"1") -> 2 | E3: =G3/H3*D3 -> 0.1333333333 | G3: 0.2 | H3: =COUNTIF(B4:B6,"<>") -> 3
B4: 1.1. | C4: Сырье, материалы хранятся в соответствии с требованиями. Транспортные средства/упаковочное оборудование согласованы со специальными свойствами сырья и материалов. | D4: 1
B5: 1.2. | C5: Изолируются и маркируются сырье и материалы, забракованные на входном контроле. Ведется учет.
B6: 1.3. | C6: Определен перечень сырья и материалов, подлежащих входному контролю. | D6: 1
B7: 2. | C7: Контроль качества в ходе производства | D7: =SUMIF(D8:D15,"1") -> 4 | E7: =G7/H7*D7 -> 0.24 | G7: 0.3 | H7: =COUNTIF(B8:B12,"<>") -> 5
B8: 2.1. | C8: Определены и соблюдаются контрольные точки в процессе производства. | D8: 0
B9: 2.2. | C9: Определены объем контроля, средства и периодичность контроля, ответственный за проведение. | D9: 0
B10: 2.3. | C10: Полуфабрикаты и готовая продукция хранятся в соответствии с требованиями. Транспортные средства/упаковочное оборудование согласованы со специальными свойствами полуфабрикатов и готовой продукции. | D10: 1
B11: 2.4. | C11: В ходе производства изолируются и маркируются несоответствующие полуфабрикаты и готовая продукция. Ведется учет. | D11: 1
B12: 2.5. | C12: Применяются статистические методы для управления процессом. | D12: 0
B13: 2.6. | C13: Идентифицирован статус качества продукции. | D13: 1
B14: 2.7. | C14: Существует прослеживаемость продукции. | D14: 0
B15: 2.8. | C15: Ответственность персонала за качество определена. | D15: 1
B16: 3. | C16: Работа с клиентом, с рекламациями (анализ уровня удовлетворенности потребителей) | D16: =SUMIF(D17:D19,"1") -> 2 | E16: =G16/H16*D16 -> 0.1333333333 | G16: 0.2 | H16: =COUNTIF(B17:B19,"<>") -> 3
B17: 3.1. | C17: Определено время на реагирование при возникновении обращения клиента и порядок реагирования. | D17: 1
B18: 3.2. | C18: Удовлетворенность клиента оценивается на постоянной основе. | D18: 1
B19: 4.3. | C19: По результатам оценки осуществляется анализ и разработка корректирующих мероприятий.
B20: 4. | C20: Система контроля динамики уровня брака (внутреннего и внешнего PPM). Анализ и корректирующие меры | D20: =SUM(D21:D26) -> 4 | E20: =G20/H20*D20 -> 0.2 | G20: 0.3 | H20: =COUNTIF(B21:B26,"<>") -> 6
B21: 4.1. | C21: Установлены целевые показатели по качеству. Показатели адекватны и достижимы. | D21: 1
B22: 4.2. | C22: Мониторинг целевых показателей осуществляется на постоянной основе. | D22: 1
B23: 4.3. | C23: Производственный персонал задействован в решении проблем с качеством. | D23: 0
B24: 4.4. | C24: Производственный персонал (ИТР, бригадиры и выше) обучены базовым элементам анализа. | D24: 0
B25: 4.5. | C25: Данные по качеству и процессу собираются на постоянной основе и пригодны для анализа. | D25: 1
B26: 4.6. | C26: Проводится анализ данных. Назначаются корректирующие действия. | D26: 1

Sheet 3.LM
D1: Управление материальными потоками: | E1: =SUM(E3:E32) -> 0.4
D2: Результат | G2: wheight | H2: criteria
B3: 1. | C3: Складская логистика | D3: =SUMIF(D4:D13,"1") -> 6 | E3: =G3/H3*D3 -> 0.12 | G3: 0.2 | H3: =COUNTIF(B4:B13,"<>") -> 10
B4: 1.1. | C4: Организация склада: наличие зонирования (выделена зона приемки, отгрузки и хранения). | D4: 1
B5: 1.2. | C5: Организация склада: наличие оборудования (стеллажи и т.д.) | D5: 1
B6: 1.3. | C6: Организация склада: наличие идентификации мест хранения, маркировки, соответствия планировке. | D6: 0
B7: 1.4. | C7: Существует формализованные стандарты/процедуры приемки и отгрузки продукции. | D7: 1
B8: 1.5. | C8: Существует формализованные стандарты/процедуры хранения сырья, брака, отходов и готовых изделий (идентификация, адресное хранение). | D8: 1
B9: 1.6. | C9: Существуют стандарты упаковки (кратность, тип, идентификация). | D9: 0
B10: 1.7. | C10: Существует рабочая и формализованная система адресного хранения. | D10: 0
B11: 1.8. | C11: Существует рабочая и формализованная система FIFO. | D11: 0
B12: 1.9. | C12: Существует регламент работы склада (график и т.д.) | D12: 1
B13: 1.10. | C13: Проведение полной инвентаризации (1-2 раза в год). | D13: 1
B14: 2. | C14: Внутренняя логистика | D14: =SUMIF(D15:D19,"1") -> 3 | E14: =G14/H14*D14 -> 0.12 | G14: 0.2 | H14: =COUNTIF(B15:B19,"<>") -> 5
B15: 2.1. | C15: Определены и формализованы методы, периодичность, размеры партий и тара для перемещения ТМЦ между складом и производством. | D15: 1
B16: 2.2. | C16: Определены зоны ответственности, графики, маршруты и т.д., перемещения ТМЦ. | D16: 0
B17: 2.3. | C17: Определен способ комплектации производства. | D17: 0
B18: 2.4. | C18: Существует стандарты работы с заказами производства (форма заявок, сроки исполнения и т.д.) | D18: 1
B19: 2.5. | C19: Существует система контроля исполнения заявок производства (количество: полученных, выполненных, просроченных и т.д.) | D19: 1
B20: 3. | C20: Внешняя логистика | D20: =SUMIF(D21:D25,"1") -> 2 | E20: =G20/H20*D20 -> 0.08 | G20: 0.2 | H20: =COUNTIF(B21:B25,"<>") -> 5
B21: 3.1. | C21: Существует процедура прогнозирования. | D21: 0
B22: 3.2. | C22: Внедрено планирование закупок. | D22: 1
B23: 3.3. | C23: Наличие системы оценки и анализа при выборе поставщика. | D23: 0
B24: 3.4. | C24: Наличие системы оценки и анализа при выборе перевозчика (транспортной компании). | D24: 0
B25: 3.5. | C25: Существует система логистического контроллинга. | D25: 1
B26: 4. | C26: Логистика запасов | D26: =SUMIF(D27:D31,"1") -> 2 | E26: =G26/H26*D26 -> 0.08 | G26: 0.2 | H26: =COUNTIF(B27:B31,"<>") -> 5
B27: 4.1. | C27: Установлены нормативы запасов (заготовки, НЗП, готовая продукция) в денежном и материальном выражении. | D27: 1
B28: 4.2. | C28: Установлены нормативы оборачиваемости запасов (заготовки, НЗП, готовая продукция). | D28: 0
B29: 4.3. | C29: Внедрена система мониторинга и контроля запасов. | D29: 1
B30: 4.4. | C30: Отсутствуют неликвидные запасы (не востребованы в течение полугода). | D30: 0
B31: 4.5. | C31: Объем запасов не превышает более чем в 2 раза объем продаж. | D31: 0
B32: 5. | C32: Автоматизация | D32: =SUM(D33:D36) -> 0 | E32: =G32/H32*D32 -> 0 | G32: 0.2 | H32: =COUNTIF(B33:B36,"<>") -> 4
B33: 5.1. | C33: Автоматизация lvl0: существуют и ведутся журналы учета перемещений ТМЦ. | D33: 0
B34: 5.2. | C34: Автоматизация lvl1: в работе используется программный комплекс учета перемещений ТМЦ (типа 1С, SAP и т.д.) - инвентаризация не чаще чем 2 раза в год. | D34: 0
B35: 5.3. | C35: Автоматизация lvl2: используется специальное программное обеспечение (типа WMS, EDI, CRM, SCM и т.д.) | D35: 0
B36: 5.4. | C36: Автоматизация lvl3: используются беспроводные устройства автоматизации транзакции (QR и BAR - коды, RFID -метки, Zebra-принтер, беспроводные сканеры, и т.д.) | D36: 0

Sheet 4.EN
D1: Управление технологией: | E1: =SUM(E3:E25) -> 0.6125
D2: Результат | G2: wheight | H2: criteria
B3: 1. | C3: Технология | D3: =SUMIF(D4:D15,"1") -> 7 | E3: =G3/H3*D3 -> 0.3791666667 | G3: 0.65 | H3: =COUNTIF(B4:B15,"<>") -> 12
B4: 1.1. | C4: Наличие формализованного документа, описывающего технологический процесс на рабочем месте. | D4: 1
B5: 1.2. | C5: Наличие инструкции оператора на рабочем месте. | D5: 1
B6: 1.3. | C6: Наличие чертежей и прочей необходимой для операций, технологической документации на рабочем месте. | D6: 1
B7: 1.4. | C7: Наличие нормативного времени для каждой операции. | D7: 0
B8: 1.5. | C8: Наличие нормативного времени для переналадки оборудования. | D8: 0
B9: 1.6. | C9: Наличие визуализаций на рабочем месте (OK-NOK, важные для операции моменты, технологические карты и т.д.) | D9: 1
B10: 1.7. | C10: Эргономичность рабочего места. | D10: 0
B11: 1.8. | C11: Оснащенность рабочего места измерительными и необходимыми в рабочем процессе инструментами. | D11: 1
B12: 1.9. | C12: Наличие детальной планировки с указанием рабочих зон, расстановки оборудования, мест хранения и т.д. | D12: 1
B13: 1.10. | C13: Соответствие рабочих зон (расстановка оборудования, мест хранения и т.д.), нет лишних передвижений/перемещений, организованы минимальные пути передвижений/перемещений. | D13: 0
B14: 1.11. | C14: Наличие идентификации (маркировки) рабочих зон, выделены места хранения: сырья, межоперационного задела, готовой продукции, брака. | D14: 1
B15: 1.12. | C15: Наличие элементов системы 5С (чистота, порядок, стандартизация и т.д.) | D15: 0
B16: 2. | C16: Оптимизация | D16: =SUMIF(D17:D25,"1") -> 6 | E16: =G16/H16*D16 -> 0.2333333333 | G16: 0.35 | H16: =COUNTIF(B17:B25,"<>") -> 9
B17: 2.1. | C17: Ежемесячный анализ эффективности использования оборудования. | D17: 1
B18: 2.2. | C18: Ежемесячный анализ коэффициента загруженности оборудования. | D18: 1
B19: 2.3. | C19: Ежемесячный анализ производительности оборудования. | D19: 1
B20: 2.4. | C20: Ежемесячный анализ причин простоев оборудования. | D20: 1
B21: 2.5. | C21: Периодическая оценка релевантности технологической документации (тех. процесс, рабочие инструкции, СОК и т.д.) | D21: 1
B22: 2.6. | C22: Периодический контроль технологической дисциплины. | D22: 1
B23: 2.7. | C23: Мероприятия по оптимизации и балансировке рабочих мест. | D23: 0
B24: 2.8. | C24: Существуют формализованные стандарты, направленные на непрерывное улучшение (Кайдзен). | D24: 0
B25: 2.9. | C25: Мероприятия по созданию системы предупреждения возникновения ошибок операторов. | D25: 0

Sheet 5. MT
D1: Система обслуживания оборудования: | E1: =SUM(E3:E28) -> 0.3520833333
D2: Результат | G2: wheight | H2: criteria
B3: 1. | C3: Анализ и учет | D3: =SUMIF(D4:D11,"1") -> 3 | E3: =G3/H3*D3 -> 0.09375 | G3: 0.25 | H3: =COUNTIF(B4:B11,"<>") -> 8
B4: 1.1. | C4: Существует статистика по аварийным простоям станка пригодная для обработки (указаны даты простоя, время простоя, причины простоя, корректирующие действия по устранению причин). | D4: 1
B5: 1.2. | C5: Статистика по аварийным простоям анализируется (определены наиболее критичные поломки). | D5: 0
B6: 1.3. | C6: Разработан план реагирования на аварийные поломки. | D6: 0
B7: 1.4. | C7: Рассчитываются показатели эффективности оборудования (OEE, MTBF, MTTR), по показателям определены целевые значения. | D7: 1
B8: 1.5. | C8: Определено ключевое оборудование. | D8: 0
B9: 1.6. | C9: Проведен RCM анализ. | D9: 0
B10: 1.7. | C10: Определена стратегия обслуживания. | D10: 1
B11: 1.8. | C11: Система управления ТО и эффективностью оборудования автоматизирована. | D11: 0
B12: 2. | C12: Автономное обслуживание | D12: =SUMIF(D13:D17,"1") -> 0 | E12: =G12/H12*D12 -> 0 | G12: 0.25 | H12: =COUNTIF(B13:B17,"<>") -> 5
B13: 2.1. | C13: Роли и ответственности за ТО распределены между производственным и ремонтным персоналом. | D13: 0
B14: 2.2. | C14: Производственный персонал прошел обучение принципам автономного обслуживания. | D14: 0
B15: 2.3. | C15: Разработаны визуальные стандарты проведения автономного обслуживания. | D15: 0
B16: 2.4. | C16: Производственный персонал знает задачи автономного обслуживания (попросить продемонстрировать). | D16: 0
B17: 2.5. | C17: Автономное обслуживание выполняется (запросить чек-листы, проверка наполненности, проверки выполнения задач). | D17: 0
B18: 3. | C18: Плановое обслуживание | D18: =SUMIF(D19:D22,"1") -> 3 | E18: =G18/H18*D18 -> 0.1875 | G18: 0.25 | H18: =COUNTIF(B19:B22,"<>") -> 4
B19: 3.1. | C19: Разработан график ППР. | D19: 1
B20: 3.2. | C20: График ППР привязан к фактической загрузке оборудования (машино-часам). | D20: 0
B21: 3.3. | C21: График ППР соблюдается (запросить отчеты о выполнении ППР). | D21: 1
B22: 3.4. | C22: Разработаны стандарты на проведение ППР, определены нормативы. | D22: 1
B23: 4. | C23: Система закупок запчастей | D23: =SUM(D24:D27) -> 1 | E23: =G23/H23*D23 -> 0.0375 | G23: 0.15 | H23: =COUNTIF(B24:B27,"<>") -> 4
B24: 4.1. | C24: Определен список запчастей и быстро изнашиваемых деталей для ключевого оборудования. | D24: 1
B25: 4.2. | C25: Организован склад запасных частей (при необходимости - консигнационный склад, договор с поставщиками). | D25: 0
B26: 4.3. | C26: Отсутствуют простои оборудования из-за отсутствия запчастей. | D26: 0
B27: 4.4. | C27: Проводится анализ надежности поставщиков запчастей. | D27: 0
B28: 5. | C28: Обслуживание, ориентированное на качество | D28: =SUM(D29:D31) -> 1 | E28: =G28/H28*D28 -> 0.03333333333 | G28: 0.1 | H28: =COUNTIF(B29:B31,"<>") -> 3
B29: 5.1. | C29: Проводится анализ влияния оборудования на качество продукции. | D29: 1
B30: 5.2. | C30: При увеличении вариации качества продукции проводятся корректирующие работы по обслуживанию оборудования. | D30: 0
B31: 5.3. | C31: Брак по причине ухудшения функций оборудования отсутствует. | D31: 0

Sheet 6.HR
D1: Управление персоналом: | E1: =SUM(E3:E55) -> 0.5200802139
D2: Результат | G2: wheight | H2: criteria
B3: 1. | C3: Система планирования трудовых ресурсов | D3: =SUMIF(D4:D9,"1") -> 1 | E3: =G3/H3*D3 -> 0.04 | G3: 0.2 | H3: =COUNTIF(B4:B9,"<>") -> 5
B4: 1.1. | C4: Наличие плана развития организации на предстоящий период. | D4: 1
B5: 1.3. | C5: Анализ внутренних трудовых ресурсов организации с точки зрения удовлетворения будущих потребностей организации (аналитический отчёт по анализу кадрового потенциала). | D5: 0
B6: 1.4. | C6: Наличие прогноза потребности в трудовых ресурсах. | D6: 0
C7: Наличие планов мероприятий по удовлетворению потребности в трудовых ресурсах, в т.ч.:
B8: 1.5. | C8: - мероприятия по изменению (производственной структуры, структуры управления, организации труда, технологических процессов); | D8: 0
B9: 1.6. | C9: - мероприятия по покрытию потребности (привлечение, перераспределение, высвобождение, развитие персонала). | D9: 0
B10: 2. | C10: Мотивация | D10: =SUMIF(D12:D31, "1") -> 11 | E10: =G10/H10*D10 -> 0.1294117647 | G10: 0.2 | H10: =COUNTIF(B11:B31,"<>") -> 17
C11: Наличие положения об оплате труда работников, в т.ч.:
B12: 2.1. | C12: - структура оплаты труда работников (оклад - основная часть, доплаты компенсационного характера, доплаты стимулирующего характера, социальные выплаты); | D12: 1
B13: 2.2. | C13: - сроки и формы перечисления зарплаты; | D13: 1
B14: 2.3. | C14: - принципы и порядок премирования; | D14: 1
B15: 2.4. | C15: - порядок индексации заработной платы; | D15: 1
B16: 2.5. | C16: - ответственность работодателя. | D16: 1
C17: Наличие положения о мотивации и стимулировании персонала, в т.ч.:
B18: 2.6. | C18: - цели, задачи, основные принципы мотивации персонала (справедливость, законность, гласность, гибкость, универсальность, эффективность, объективность и т.п.); | D18: 1
B19: 2.7. | C19: - порядок реализации и меры материальной мотивации трудовой деятельности (премии, единовременное денежное поощрение, единовременная выплата, ценный подарок, бонусы, участие в прибыли, в собственности, оплата транспортных расходов, ДМС, стипендии, питание и т.п.); | D19: 1
B20: 2.8. | C20: - порядок реализации и меры нематериальной мотивации трудовой деятельности (признание, гибкий график работы, участие в управлении, обогащение в содержании труда, перспектива приобретения новых знаний и навыков, возможность повышения работника в должности, включение в резерв на выдвижение на вышестоящую должность и т.п.); | D20: 0
B21: 2.9. | C21: - компетенция руководства. | D21: 0
C22: Наличие методики оценки лояльности персонала (положение/стандарт/регламент), в т.ч.:
B23: 2.10. | C23: - статистика кадровой текучести; | D23: 1
B24: 2.11. | C24: - результаты интервьюирования работников; | D24: 1
B25: 2.12. | C25: - результаты наблюдения за поведением сотрудников; | D25: 0
B26: 2.13. | C26: - результаты регулярного анкетирования. | D26: 0
C27: Наличие методики оценки вовлеченности персонала (положение/стандарт/регламент), в т.ч.:
B28: 2.14. | C28: - анализ кадровой статистики; | D28: 1
B29: 2.15. | C29: - результаты интервьюирования работников; | D29: 1
B30: 2.16. | C30: - результаты наблюдения за поведением сотрудников; | D30: 0
B31: 2.17. | C31: - результаты регулярного анкетирования. | D31: 0
B32: 3. | C32: Система адаптации персонала | D32: =SUMIF(D33:D41, "1") -> 5 | E32: =G32/H32*D32 -> 0.125 | G32: 0.2 | H32: =COUNTIF(B33:B41,"<>") -> 8
C33: Наличие формализованной программы адаптации (положение/стандарт/регламент), в т.ч.:
B34: 3.1. | C34: - наличие листа контроля прохождения адаптационного периода новым работником; | D34: 1
B35: 3.2. | C35: - назначение наставника (приказ); | D35: 1
B36: 3.3. | C36: - инструктаж на рабочем месте (инструкция); | D36: 1
B37: 3.4. | C37: - наличие индивидуального плана работника на период адаптации; | D37: 0
B38: 3.5. | C38: - наличие отзыва наставника о работе нового сотрудника в период адаптации; | D38: 0
B39: 3.6. | C39: - наличие анкеты нового работника о периоде адаптации; | D39: 0
B40: 3.7. | C40: - наличие заключения непосредственного руководителя о прохождении работником периода адаптации; | D40: 1
B41: 3.8. | C41: - наличие зафиксированного результата о прохождении работником периода адаптации; | D41: 1
B42: 4. | C42: Оценка | D42: =SUMIF(D44:D54,"1") -> 4 | E42: =G42/H42*D42 -> 0.07272727273 | G42: 0.2 | H42: =COUNTIF(B43:B54,"<>") -> 11
C43: Наличие формализованной программы оценки персонала (положение/стандарт/регламент), в т.ч.:
B44: 4.1. | C44: - цели, задачи, основные принципы оценки персонала; | D44: 1
B45: 4.2. | C45: - предмет оценки (уровень развития компетенций, уровень эффективности деятельности); | D45: 1
B46: 4.3. | C46: - методы и методики оценки (аттестация, ассессмент, тестирование, бальная, 360 градусов, ранжирование и т.п.); | D46: 0
B47: 4.4. | C47: - виды оценки (регулярная, разовая, на замещение вакантных должностей и т.п.); | D47: 0
B48: 4.5. | C48: - разработка корпоративной модели компетенций (управленческие, коммуникативные, корпоративные, профессиональные); | D48: 1
B49: 4.6. | C49: - процедура оценки компетенций (стандарт); | D49: 0
B50: 4.7. | C50: - принятие управленческих решений по результатам оценки по компетенциям (о перемещении работника, о пересмотре уровня оплаты труда, формируются ресурсные планы и т.п.); | D50: 0
B51: 4.8. | C51: - разработка Ключевых показателей эффективности (система целей и задач для должности, количественные целевые показатели для обеспечения эффективной работы); | D51: 0
B52: 4.9. | C52: - процедура оценки достижения Ключевых показателей эффективности (оценка руководителя, самооценка, сравнение фактического и целевого значения); | D52: 0
B53: 4.10. | C53: - принятие управленческих решений по результатам оценки достижения КПЭ (о выплате бонусной части вознаграждения); | D53: 0
B54: 4.11. | C54: - общие управленческие решения по итогам оценки (о повышении, понижении, переводе, увольнении, формируются ресурсные планы, планы обучения и развития, предложения по корректировке ФОТ). | D54: 1
B55: 5. | C55: Обучение и развитие | D55: =SUMIF(D57:D74,"1") -> 13 | E55: =G55/H55*D55 -> 0.1529411765 | G55: 0.2 | H55: =COUNTIF(B56:B74,"<>") -> 17
C56: Наличие формализованной программы обучения персонала (положение/стандарт/регламент), в т.ч.:
B57: 5.1. | C57: - цели, задачи, основные принципы обучения персонала; | D57: 1
B58: 5.2. | C58: - виды обучения (плановое, внеплановое, внешнее, внутреннее, индивидуальное, групповое и т.п.); | D58: 1
B59: 5.3. | C59: - формы организации обучения (конкретные планы, должности, ответственные за проведение, виды учебных организаций); | D59: 1
B60: 5.4. | C60: - методы обучения (программы среднего специального образования, программы бакалавриата, специалистов, магистратуры, МВА, семинары, тренинги, видеокурсы, наставничество, стажировки, интерактивное обучение, самообучение и саморазвитие и т.п.); | D60: 1
B61: 5.5. | C61: - программа обучения руководителей и специалистов; | D61: 1
B62: 5.6. | C62: - программа профессионального обучения рабочих; | D62: 1
B63: 5.7. | C63: - оценка эффективности обучения персонала; | D63: 1
B64: 5.8. | C64: - ответственность за обучение. | D64: 1
B65: 5.9. | C65: Наличие матрицы компетенций работников. | D65: 1
B66: 5.10. | C66: Наличие сводного плана проведения обучающих мероприятий. | D66: 1
C67: Наличие положения о карьере работников, в т.ч.:
B68: 5.11. | C68: - цели, задачи, основные принципы управления карьерой персонала; | D68: 1
B69: 5.12. | C69: - инструменты управления деловой карьерой (планирование, консультирование, поддержка, перемещение); | D69: 0
B70: 5.13. | C70: - порядок индивидуального развития сотрудника компании (индивидуальный план развития ИПР, карьерограмма); | D70: 0
B71: 5.14. | C71: - порядок формирования и развития кадрового резерва компании (структура, принципы отбора кандидатов в КР, комплексная оценка кандидатов, анкета резервиста, ИПР, база КР); | D71: 0
B72: 5.15. | C72: - порядок прохождения руководителей высшего звена программы индивидуального карьерного коучинга (план); | D72: 0
B73: 5.16. | C73: - обязанность и ответственность сторон при организации процесса управления карьерой. | D73: 1
B74: 5.17. | C74: Принятие управленческого решения о кадровом перемещении (приказ). | D74: 1

Sheet 7. EX
D1: Исполнительное управление: | E1: =SUM(E3:E31) -> 0.7175
D2: Результат | G2: wheight | H2: criteria
B3: 1. | C3: Формирование стратегии | D3: =SUMIF(D4:D13,"1") -> 6 | E3: =G3/H3*D3 -> 0.18 | G3: 0.3 | H3: =COUNTIF(B4:B13,"<>") -> 10
B4: 1.1. | C4: Существует формализованная стратегия развития организации. | D4: 1
B5: 1.2. | C5: Для существующей стратегии развития разработаны дорожные карты, из которых можно понять, как будут достигаться ключевые стратегические цели. | D5: 1
B6: 1.3. | C6: Разработанная стратегия и дорожные карты к ней регулярно пересматриваются. | D6: 1
B7: 1.4. | C7: Стратегия организации каскадирована до уровня стратегий направлений, и эти стратегии не противоречат ключевым стратегическим целям организации. | D7: 1
B8: 1.5. | C8: В разработке стратегии принимают участие топ-менеджеры и менеджеры среднего звена. | D8: 1
B9: 1.6. | C9: К разработке стратегии и дорожных карт привлекаются руководители вплоть до линейного уровня. | D9: 0
B10: 1.7. | C10: Стратегия опирается на сбалансированные показатели (BSC). | D10: 0
B11: 1.8. | C11: Разработка стратегии осуществляется по принципу Хосин-канри. | D11: 0
B12: 1.9. | C12: Система КПЭ увязана со стратегией развития организации. | D12: 0
B13: 1.10. | C13: Cотрудники (выборочно) организации знают ключевые стратегические ориентиры компании и понимают, что могут сделать на своем рабочем месте для их достижения. | D13: 1
B14: 2. | C14: Планирование | D14: =SUMIF(D15:D24,"1") -> 7 | E14: =G14/H14*D14 -> 0.21 | G14: 0.3 | H14: =COUNTIF(B15:B24,"<>") -> 10
B15: 2.1. | C15: Существуют ближне-, средне- и долгосрочные планы деятельности организации. Эти планы формализованы. | D15: 1
B16: 2.2. | C16: Планы организации каскадированы до уровня базовых рабочих единиц (отделы, бригады, звенья и т.д.) | D16: 1
B17: 2.3. | C17: Для всех планов предусмотрены и выполняются регулярные оценки и актуализация. | D17: 1
B18: 2.4. | C18: Все планы синхронизированы с ресурсными планами. | D18: 1
B19: 2.5. | C19: Для всех элементов планов обозначены ответственные за их реализацию, сроки исполнения. | D19: 1
B20: 2.6. | C20: Ведется регулярный мониторинг исполнения планов на всех уровнях. | D20: 0
B21: 2.7. | C21: Планы и статус их исполнения размещены в общедоступных местах (например, на стендах ВУ). | D21: 0
B22: 2.8. | C22: Постановка задач сотрудникам осуществляется на основании разработанных планов. | D22: 1
B23: 2.9. | C23: Все работники на своих местах знают планы своих подразделений. | D23: 0
B24: 2.10. | C24: Существует формализованная система планов регулярных совещаний, планерок. | D24: 1
B25: 3. | C25: Постановка целей и их каскадирование | D25: =SUMIF(D26:D30,"1") -> 4 | E25: =G25/H25*D25 -> 0.24 | G25: 0.3 | H25: =COUNTIF(B26:B30,"<>") -> 5
B26: 3.1. | C26: Определены ключевые цели деятельности организации. | D26: 1
B27: 3.2. | C27: Цели организации каскадированы до уровня работников. | D27: 1
B28: 3.3. | C28: Цели сформулированы в формате SMART. | D28: 0
B29: 3.4. | C29: Цели зафиксированы в виде реестра, дерева целей. | D29: 1
B30: 3.5. | C30: Работники на своих местах знают цели своей деятельности, они соответствуют действительности. | D30: 1
B31: 4. | C31: Практики регулярного менеджмента | D31: =SUM(D32:D39) -> 7 | E31: =G31/H31*D31 -> 0.0875 | G31: 0.1 | H31: =COUNTIF(B32:B39,"<>") -> 8
B32: 4.1. | C32: Руководители регулярно проводят планерки с использованием стендов ВУ. | D32: 1
B33: 4.2. | C33: Руководители регулярно проводят линейные обходы. | D33: 1
B34: 4.3. | C34: Руководители используют стенды ВУ в операционной деятельности. | D34: 1
B35: 4.4. | C35: Руководители регулярно проводят сессии по решению проблем. | D35: 0
B36: 4.5. | C36: Руководители регулярно предоставляют работникам обратную связь по их работе в формате индивидуальных встреч. | D36: 1
B37: 4.6. | C37: Руководители используют методы и подходы нематериальной мотивации. | D37: 1
B38: 4.7. | C38: Руководители транслируют работникам цели и ценности компании, добиваются их понимания работниками. | D38: 1
B39: 4.8. | C39: Регулярно проводится обучение для руководителей по практикам регулярного менеджмента. | D39: 1

Sheet 8. SAFETY
D1: Система ОТ и ПБ: | E1: =SUM(E3:E22) -> 0.3
D2: Результат | F2: wheight | G2: criteria
B3: 1. | C3: Промышленная безопасность и охрана труда | D3: =SUMIF(D4:D23,"1") -> 6 | E3: =F3/G3*D3 -> 0.3 | F3: 1 | G3: =COUNTIF(B4:B23,"<>") -> 20
B4: 1.1. | C4: Наличие на предприятии утвержденной политики безопасности, соответствующие процедуры задокументированы и доступны для сотрудников. | D4: 1
B5: 1.2. | C5: На предприятии имеется план действий при аварийных ситуациях, задокументированный и регулярно обновляющийся. | D5: 1
B6: 1.3. | C6: Разработаны и актуализированы инструкции по пожарной безопасности. | D6: 1
B7: 1.4. | C7: Есть планы эвакуации для всех помещений. | D7: 1
B8: 1.5. | C8: На предприятии существуют инструкции по безопасной эксплуатации оборудования и машин (инструкции ОТ). | D8: 0
B9: 1.6. | C9: Сотрудники регулярно проходят обучение по ОТ с оформлением соответствующих документов. | D9: 0
B10: 1.7. | C10: Инструктажи проводятся своевременно, все журналы заполнены. | D10: 0
B11: 1.8. | C11: У персонала есть все необходимые допуски для работы в рамках должностных обязанностей. | D11: 0
B12: 1.9. | C12: Сотрудники обучены методу проведения оценки рисков и оценки безопасности работ. | D12: 0
B13: 1.10. | C13: При возникновении инцидентов вся информация фиксируется, доводится до персонала, ведется статистика. | D13: 0
B14: 1.11. | C14: При возникновении инцидентов проводятся расследования с доведением результатов персоналу. | D14: 0
B15: 1.12. | C15: Существуют процедуры блокировки и разблокировки оборудования, персонал обучен. | D15: 0
B16: 1.13. | C16: На работы повышенной опасности оформляется наряд-допуск, ведется журнал открытия и закрытия допуска. | D16: 1
B17: 1.14. | C17: Ведется контроль за работой подрядных организаций. | D17: 0
B18: 1.15. | C18: На территории предприятия/цеха размещены знаки безопасности и сигнальная разметка. | D18: 0
B19: 1.16. | C19: Персонал использует СИЗ, которые всегда в доступе в необходимом количестве. | D19: 1
B20: 1.17. | C20: Регулярно проводятся аудиты по безопасности с фокусом на небезопасное поведение и небезопасные условия. | D20: 0
B21: 1.18. | C21: Нарушения ОТ фиксируются, ведется статистика. | D21: 0
B22: 1.19. | C22: Существуют KPI в области безопасности для всех сотрудников. | D22: 0
B23: 1.20. | C23: По результатам фиксации нарушений ОТ проводятся конкурсы, лидеры с наименьшими нарушениями поощряются. | D23: 0
